Cogmind - Beta 14 @@@ ROGUE MODE // 2024.08.18 @ 03:24:12 Player: Savant Result: Destroyed by G-73 Enforcer with Phase Gun Performance ------------- Evolutions (6) 3000 Regions Visited (19) 3800 Robots Destroyed (204) 1020 Value Destroyed (11690) 11690 Prototype IDs (38) 760 Alien Tech Used (0) 0 Bonus (10650) 10650 TOTAL SCORE: 30920 Bonus ------- High Alert Combat Kills 1185 Follower Combat Kills 6767 Entered Garrisons 1200 Used RIF Installer 3000 Friendly Fire -1502 Cogmind --------- Core Integrity 0/1150 Matter 182/300 Energy 17/100 System Corruption 30% Temperature Cool (21) Movement Core (1350) Ox26 Location -4/Extension Parts ------- > --- POWER (2) -------- (None) > --- PROPULSION (5) --- (None) > --- UTILITY (9) ------ Huge Storage Unit > --- WEAPON (3) ------- (None) > --- INVENTORY (25) --- Light Antimatter Reactor Wheel Compact Wheel Experimental Matter Compressor (500) Experimental Sensor Array Long-range Terrain Scanner Experimental Terrain Scan Processor Experimental Core Analyzer Graphene Brace Relay Coupler [Proto] (9) Relay Coupler [Proto] (9) Relay Coupler [Proto] (9) Relay Coupler [Proto] (9) Improved Remote Datajack Improved Plasma Cutter Plasma Sword PL-3XN's Ring of Power Peak State ------------ > --- POWER ------------ Light Antimatter Reactor Heavy Antimatter Reactor > --- PROPULSION ------- Advanced Medium Treads Advanced Medium Treads Advanced Medium Treads Heavy Siege Treads > --- UTILITY ---------- Experimental Heat Sink Huge Storage Unit Advanced Transmission Jammer Improved Hacking Suite Advanced Hacking Suite Relay Coupler [NC] Relay Coupler [Swarmer] Relay Coupler [Sentry] Relay Coupler [Hunter] > --- WEAPON ----------- Heavy Dispersion Rifle Cooled Plasma Cannon Antimatter Cannon > --- INVENTORY -------- Light Antimatter Reactor Light Antimatter Reactor Medium Treads Heavy Siege Treads Wheel Compact Wheel Experimental Matter Compressor Experimental Sensor Array Long-range Terrain Scanner Experimental Terrain Scan Processor Experimental Core Analyzer Improved Utility Shielding Improved Medium Armor Plating Graphene Brace Advanced Force Field Relay Coupler [Proto] Relay Coupler [Proto] Relay Coupler [Proto] Relay Coupler [Proto] Rocket Launcher Improved Remote Datajack Improved Plasma Cutter Plasma Sword PL-3XN's Ring of Power [Rating: 126] Favorites ----------- Power Light Quantum Reactor Engine Heavy Ion Engine Power Core Micro Fission Core Reactor Light Quantum Reactor Propulsion Improved Heavy Treads Treads Improved Heavy Treads Leg Flexi-carbon Leg Wheel Armored Wheel Flight Unit Cooled Q-thruster Utility Huge Storage Unit Device Cooling System Storage Huge Storage Unit Processor Advanced Signal Interpreter Hackware Relay Coupler [Swarmer] Protection Improved Utility Shielding Weapon Cooled Plasma Cannon Energy Gun Heavy Dispersion Rifle Energy Cannon Cooled Plasma Cannon Ballistic Gun Improved Assault Rifle Ballistic Cannon Antimatter Cannon Launcher Grenade Launcher Special Weapon Improved Remote Datajack Impact Weapon Maul Slashing Weapon Plasma Sword Special Melee Weapon Datajack Build | -11 -10 -10 -9 -9 -9 -8 -8 -7 -7 -6 -6 -6 -6 -5 -5 -4 -4 -4 -4 ------- Run | Yrd Mat Min Mat Sto Gar Mat Gar Fac Gar Fac Was Fac Gar Fac Gar Fac Gar Fac Ext Slots Evolved 12 | . . . 2 . . 2 . 2 . 2 . . . 2 . 2 . . . Power 1 | . . . . . . . . . . . . . . . . 1 . . . Propulsion 3 | . . . 1 . . . . . . 1 . . . . . 1 . . . Utility 7 | . . . 1 . . 2 . 2 . 1 . . . 1 . . . . . Weapon 1 | . . . . . . . . . . . . . . 1 . . . . . Parts Attached 589 | 7 24 18 28 31 43 9 5 17 31 12 7 54 26 42 45 41 47 72 30 Power 25 | 1 1 1 5 2 . . 1 . 1 . . . . 3 1 1 3 3 2 Engine 10 | 1 1 1 5 2 . . . . . . . . . . . . . . . Core 3 | . . . . . . . 1 . . . . . . 2 . . . . . Reactor 12 | . . . . . . . . . 1 . . . . 1 1 1 3 3 2 Propulsion 57 | 2 5 2 5 4 4 3 . . . 2 . 1 . 4 7 2 2 12 2 Treads 43 | 2 3 1 3 4 4 1 . . . 2 . 1 . 3 7 2 1 7 2 Leg 1 | . . . . . . . . . . . . . . . . . 1 . . Wheel 12 | . 2 1 2 . . 2 . . . . . . . . . . . 5 . Hover . | . . . . . . . . . . . . . . . . . . . . Flight 1 | . . . . . . . . . . . . . . 1 . . . . . Utility 187 | 2 5 3 6 2 4 4 2 5 11 4 3 22 9 21 17 21 12 24 10 Device 62 | 1 3 2 3 1 1 1 . . . 1 2 8 . 5 3 12 4 12 3 Storage 6 | 1 2 1 . . 1 1 . . . . . . . . . . . . . Processor 1 | . . . . . . . . . . . . . . . . 1 . . . Hackware 55 | . . . . . . . . 2 6 2 . 5 7 8 8 5 5 6 1 Protection 63 | . . . 3 1 2 2 2 3 5 1 1 9 2 8 6 3 3 6 6 Artifact . | . . . . . . . . . . . . . . . . . . . . Weapon 320 | 2 13 12 12 23 35 2 2 12 19 6 4 31 17 14 20 17 30 33 16 Energy Gun 46 | . 1 . 2 9 16 1 . . . . . . . 1 1 . 7 3 5 Energy Cannon 60 | . . 1 1 . . . . 5 2 3 1 14 6 7 8 3 2 5 2 Ballistic Gun 30 | 2 5 5 4 4 4 . . 2 3 1 . . . . . . . . . Ballistic Cannon 29 | . 1 1 2 . . . . . . . . 1 . 1 3 6 3 10 1 Launcher 16 | . 4 3 2 . . . . . . . . 3 . . . 1 . . 3 Special Weapon 77 | . . 1 1 1 . . . . 5 1 3 10 8 5 5 7 12 13 5 Impact Weapon 36 | . . . . 8 10 1 1 1 8 1 . 3 3 . . . . . . Slashing Weapon 14 | . 2 1 . . . . . . . . . . . . 3 . 6 2 . Piercing Weapon . | . . . . . . . . . . . . . . . . . . . . Special Melee Weapon 12 | . . . . 1 5 . 1 4 1 . . . . . . . . . . Unidentified Prototypes 9 | . . . 2 . . . . . . . . 2 . 4 . . . 1 . Corrupted Parts 1 | . . 1 . . . . . . . . . . . . . . . . . System Corruption 2 | . . 2 . . . . . . . . . . . . . . . . . Parts Lost 58 | . 2 5 6 . 5 . . . . . . . 1 2 5 1 3 8 20 Power 6 | . 1 1 2 . . . . . . . . . . . . . . . 2 Propulsion 18 | . . 2 2 . 1 . . . . . . . . . 2 1 1 4 5 Utility 22 | . . 1 1 . 2 . . . . . . . 1 1 2 . 2 3 9 Weapon 12 | . 1 1 1 . 2 . . . . . . . . 1 1 . . 1 4 Highest Loss Streak 18 | . 2 3 2 . 2 . . . . . . . 1 2 4 1 1 2 18 To Critical Strikes 1 | . . . . . . . . . . . . . . . . . . . 1 Average Slot Usage (%) 93 | . 100 98 98 100 99 96 100 99 99 85 86 85 86 87 89 93 92 97 90 Engine 3 | . 14 12 11 11 11 9 2 . . . . . . . . . . . . Core 1 | . . . . . . . 6 7 5 . . . . 1 3 . . . . Reactor 4 | . . . . . . . . . 1 6 6 6 6 3 1 8 10 10 9 Treads 17 | . 27 22 23 33 32 12 9 7 7 13 13 13 13 11 12 20 19 17 17 Wheel 3 | . . 5 8 . . 14 18 15 15 . . . . . . . . 5 . Device 8 | . 14 13 15 11 11 18 9 7 7 5 6 4 . 2 7 9 9 9 9 Storage 7 | . 14 14 11 11 13 9 9 7 7 6 6 6 6 5 5 5 5 5 5 Hackware 16 | . . . . . . . . 3 15 26 26 20 32 32 29 23 23 26 26 Protection 11 | . . . 6 11 8 14 27 33 22 13 13 19 13 9 8 8 7 5 4 Energy Gun 2 | . 3 . . 17 9 2 . . . . . . . 1 5 5 1 3 1 Energy Cannon 4 | . . 5 1 . . . . 4 . 4 7 8 6 10 2 5 4 5 4 Ballistic Gun 3 | . 20 6 16 1 5 9 . 4 7 1 . . . . . . . . . Ballistic Cannon 1 | . 3 14 3 . . . . . . . . . . . 1 1 3 2 4 Special Weapon 2 | . . . . . . . . . 2 3 4 3 3 2 3 2 3 2 3 Impact Weapon 1 | . . . . 2 5 6 8 2 2 2 . . 1 . . . . . . Peak Build Rating 126 | 7 8 12 19 20 22 30 32 47 57 79 87 92 91 107 108 120 122 123 126 Average Rating 68 | 5 7 8 16 18 20 27 30 42 50 75 84 86 88 101 102 114 117 113 120 On Entrance 57 | . 7 8 12 19 20 21 30 32 44 53 78 87 85 87 107 103 120 115 123 Naked Turns . | . . . . . . . . . . . . . . . . . . . . Heaviest Build 154 | 13 48 50 58 58 60 103 103 120 117 118 126 143 135 136 133 146 154 151 138 Greatest Support 170 | 40 40 40 60 63 63 60 24 24 24 150 150 150 150 150 150 165 165 165 170 Greatest Overweight (x) 6 | . 1 4 5 . 1 4 4 4 4 . . . . 1 1 1 1 6 1 Average Overweight (x) 1 | . . 1 2 . . 3 4 4 4 . . . . . . . . 2 . Largest Inventory Capacity 25 | 8 20 20 20 20 20 25 25 25 25 25 25 25 25 25 25 25 25 25 25 Average Capacity 23 | 7 15 15 20 20 20 23 25 25 25 25 25 25 25 25 25 25 25 25 25 Most Carried 25 | 7 15 17 20 20 20 25 25 25 25 25 25 25 25 25 25 25 25 25 25 Average Carried 22 | 5 11 14 18 19 19 21 24 24 24 24 24 24 24 24 24 24 24 23 23 Final Capacity 25 | 8 15 20 20 20 20 25 25 25 25 25 25 25 25 25 25 25 25 25 25 Final Carried 25 | 7 14 17 20 20 20 25 25 24 25 24 25 25 25 25 25 25 25 24 17 Class Distribution -------------------- 29% | Bothacker-Mutant 23% | Botlord-Tank 19% | Mutant 10% | Botlord-Mutant 7% | Commander-Mutant 6% | Scavenger-Mutant Dominant Class ---------------- Mutant | -10/Materials Mutant | -10/Mines Scavenger-Mutant | -9/Materials Scavenger-Mutant | -9/Storage Mutant | -9/Garrison Bothacker-Mutant | -8/Materials Commander-Mutant | -8/Garrison Commander-Mutant | -7/Factory Bothacker-Mutant | -7/Garrison Bothacker-Mutant | -6/Factory Bothacker-Mutant | -6/Waste Bothacker-Mutant | -6/Factory Bothacker-Mutant | -6/Garrison Botlord-Tank | -5/Factory Botlord-Mutant | -5/Garrison Botlord-Tank | -4/Factory Botlord-Mutant | -4/Garrison Botlord-Tank | -4/Factory Botlord-Tank | -4/Extension Resources | -11 -10 -10 -9 -9 -9 -8 -8 -7 -7 -6 -6 -6 -6 -5 -5 -4 -4 -4 -4 ----------- Run | Yrd Mat Min Mat Sto Gar Mat Gar Fac Gar Fac Was Fac Gar Fac Gar Fac Gar Fac Ext Matter Collected 10795 | 274 416 424 549 451 471 222 118 197 760 222 70 823 444 1203 658 771 857 1327 538 Remotely . | . . . . . . . . . . . . . . . . . . . . Salvage Created 8672 | 31 486 131 515 524 975 . 67 . 654 103 . 580 187 842 503 682 538 1380 474 Parts 426 | 4 43 18 40 29 59 . 2 . 19 1 . 18 3 36 34 27 17 59 17 Haulers Intercepted 4 | . 1 . 1 . . . . . . . . 1 . . . . . 1 . Recyclers Shooed 4 | . . 1 1 . . . . . . . . . . . . 1 . 1 . Parts Field Recycled . | . . . . . . . . . . . . . . . . . . . . Retrieved Matter . | . . . . . . . . . . . . . . . . . . . . Parts Self-Destructed . | . . . . . . . . . . . . . . . . . . . . Prevented . | . . . . . . . . . . . . . . . . . . . . Kills | -11 -10 -10 -9 -9 -9 -8 -8 -7 -7 -6 -6 -6 -6 -5 -5 -4 -4 -4 -4 ------- Run | Yrd Mat Min Mat Sto Gar Mat Gar Fac Gar Fac Was Fac Gar Fac Gar Fac Gar Fac Ext Combat Hostiles Destroyed 175 | . 17 18 16 12 23 . . . 2 . . 9 4 16 10 11 8 23 6 Melee 6 | . . . . . 2 . . . . . . 1 . . 1 1 1 . . Guns 58 | . 8 . 6 8 18 . . . . . . . . . 7 3 2 6 . Cannons 56 | . . 1 6 . . . . . 1 . . 6 3 11 2 5 4 11 6 AOE 43 | . 9 17 4 4 3 . . . . . . 1 . 1 . 2 . 2 . Classes Destroyed 20 | 1 6 2 1 1 . . . . 1 1 . 2 . 2 2 1 . . . Worker 7 | . . 1 1 . . . . . . . . . . . . 2 . 2 1 Builder 7 | . 1 . . . . . . . . . . . . . . 2 . 3 1 Tunneler 7 | 2 . 2 . . . . . . . . . . . 1 . 1 . 1 . Hauler 4 | . 1 . 1 . . . . . . . . 1 . . . . . 1 . Recycler 4 | . . . . . . . . . . 1 . . . . . 1 . 1 1 Operator 3 | . 1 . . 1 . . . . . . . . . . . . . . 1 Watcher 5 | . 2 . 3 . . . . . . . . . . . . . . . . Swarmer 39 | . 9 6 8 3 4 . 2 . . . . . 1 2 . 1 . 3 . Cutter 5 | . . . . . . . . . . . . . . . 5 . . . . Saboteur 1 | . . . . . . . . . . . . . . 1 . . . . . Grunt 58 | . 8 . 3 6 14 . . . 1 . . 5 3 2 1 1 5 6 3 Brawler 4 | . . . . . . . . . . . . 1 . . . 1 . . 2 Duelist 5 | . . . . 1 1 . . . . . . 1 . 1 . . . 1 . Sentry 19 | . . . 5 2 4 . . . . . . . . 3 1 . 2 1 1 Demolisher 1 | . . . . . . . . . . . . . . . . 1 . . . Specialist 3 | . . . . . . . . . . . . . . 3 . . . . . Hunter 9 | . . . . . . . . . . . . 1 . . 1 2 . 5 . Programmer 20 | . . . . . . . . . 1 . . 1 . 5 2 5 . 6 . Behemoth 3 | . . . . . . . . . . . . . . . 1 . 1 1 . Assembled 12 | . . 12 . . . . . . . . . . . . . . . . . Best Kill Streak 12 | 1 4 12 5 4 3 . . . 1 1 . 2 1 6 5 4 2 6 2 Combat Bots Only 12 | . 4 12 4 4 3 . . . 1 . . 2 1 6 5 2 2 4 2 Max Kills in Single Turn 4 | 1 3 4 3 1 2 . 1 . 1 1 . 1 1 2 1 2 1 3 1 Gunslinging . | . . . . . . . . . . . . . . . . . . . . Exploded 3 | . 3 3 3 1 2 . . . . . . 1 . 1 . 1 . 1 . Melee 1 | . . . . . 1 . . . . . . 1 . . 1 1 1 . . Uniques/NPCs Destroyed . | . . . . . . . . . . . . . . . . . . . . Combat | -11 -10 -10 -9 -9 -9 -8 -8 -7 -7 -6 -6 -6 -6 -5 -5 -4 -4 -4 -4 -------- Run | Yrd Mat Min Mat Sto Gar Mat Gar Fac Gar Fac Was Fac Gar Fac Gar Fac Gar Fac Ext Hostile Shots Fired 1417 | . 66 30 92 38 79 . . 12 24 14 . 80 58 192 90 96 44 224 278 Missed 458 | . 18 13 23 11 27 . . 5 10 4 . 25 21 71 20 30 12 70 98 Damage Taken 17982 | . 525 555 823 402 713 . . 96 255 293 . 1245 494 2147 1846 1579 703 2702 3604 Core 2063 | . 61 87 101 35 84 . . 18 33 16 . 115 30 110 210 233 . 199 731 Absorbed by Shields 998 | . . . . . . . . . 40 . . . . . 37 46 191 406 278 Reduced by Siege Mode 99 | . . . . . . . . . . . . . . . 35 21 34 9 . Redirected to Shielding 276 | . . . . . . . . . . 57 . 3 17 17 30 24 6 67 55 Regen/Repaired (Parts) 4193 | . 131 . . . . 43 . . 5 51 195 660 225 1192 . 472 . 859 360 Core Remaining (%) 75 | 100 . 40 . . 45 . 100 . 92 . . . 81 . 68 . . . . Volleys Fired 919 | 13 72 25 67 23 40 1 . 7 74 14 3 95 46 81 51 90 43 118 56 Largest 3 | 2 2 2 2 2 2 2 . 2 2 2 2 2 2 3 3 3 3 3 3 Hottest 242 | 40 60 100 100 100 90 68 . 98 98 68 70 210 70 164 188 169 169 242 169 Shots Fired 1551 | 26 136 30 130 45 76 2 . 13 122 16 7 127 58 138 74 147 76 230 98 Gun 608 | 26 125 6 78 44 76 2 . 6 96 2 . . . 4 21 30 18 54 20 Cannon 641 | . 5 6 48 . . . . 7 4 2 7 91 31 103 31 82 34 146 44 Launcher 35 | . 6 17 3 . . . . . . . . 4 . . . 1 . . 4 Special 267 | . . 1 1 1 . . . . 22 12 . 32 27 31 22 34 24 30 30 Kinetic 517 | 26 111 11 112 2 17 1 . 6 96 2 . . . 9 10 29 17 46 22 Thermal 614 | . . 2 15 1 . . . 7 4 2 7 91 31 98 42 83 35 154 42 Explosive 35 | . 6 17 3 . . . . . . . . 4 . . . 1 . . 4 Electromagnetic 121 | . 19 . . 42 59 1 . . . . . . . . . . . . . Robot Hit Streak 55 | 5 6 6 14 7 14 4 . 5 55 4 8 23 8 11 6 13 19 22 16 Robot Miss Streak 10 | 2 5 2 3 6 10 . . 2 1 1 . 3 9 3 3 2 2 4 3 Penetration Max 1 | . . . . . . . . 1 . . . . . . . . . . . Secondary Targets 3 | . . . . . 3 . . . . . . . . . . . . . . Max Gunslinging Chain 1 | . . . . . 1 . . . . . . . . . . . . . . Shots Hit Robots 1037 | 19 65 17 83 31 74 2 44 14 111 12 7 79 24 71 37 83 60 132 72 Core Hits 412 | 6 42 34 32 26 40 1 . 1 36 1 1 18 3 23 14 25 14 42 53 Critical Kills 19 | . . . . . . . . . . . . 1 1 4 2 2 2 7 . Critical Parts Destroyed 26 | . . 1 . . . . 3 . 3 . . 1 . 1 2 6 1 7 1 Critical Strikes 55 | . 1 1 . . . . 3 . 3 . . 2 1 5 5 11 4 15 4 Meltdown 12 | . . . . . . . . . . . . 1 1 4 . . 1 5 . Destroy 31 | . . 1 . . . . . . 2 . . . . 1 4 9 3 9 2 Blast 7 | . 1 . . . . . . . . . . . . . 1 2 . 1 2 Smash 5 | . . . . . . . 3 . 1 . . 1 . . . . . . . Melee Attacks 285 | . 4 3 . 19 83 4 47 10 41 3 . 7 5 1 17 . 22 19 . Impact 161 | . . . . 18 72 4 9 3 39 3 . 7 5 1 . . . . . Slashing 65 | . 4 3 . . . . . . . . . . . . 17 . 22 19 . Piercing . | . . . . . . . . . . . . . . . . . . . . Sneak Attacks 68 | . . 2 . 1 11 . 38 5 1 1 . 1 . . 1 . 4 3 . Combat Hostiles 21 | . . . . . . . 14 . 1 . . 1 . . 1 . 4 . . Follow-up Attacks . | . . . . . . . . . . . . . . . . . . . . Damage Inflicted 26445 | 166 1048 1241 1600 680 1266 38 592 252 1588 399 224 2411 287 2320 914 2433 1502 4386 3098 Guns 8114 | 166 585 22 866 493 958 38 . 117 1461 22 . . . 148 525 781 390 1092 450 Cannons 11834 | . 39 80 514 . . . . 135 33 . 224 2051 287 1702 313 1532 803 2814 1307 Explosions 4566 | . 424 1017 220 187 212 . . . . 249 . 243 . 470 . 37 . 183 1324 Melee 1802 | . . 122 . . 96 . 592 . 94 128 . 114 . . 76 . 309 271 . Ramming 129 | . . . . . . . . . . . . 3 . . . 83 . 26 17 Kinetic 7309 | 166 527 102 1241 30 163 18 . 117 1461 22 . . . 201 86 918 448 1081 728 Thermal 11960 | . 48 . 139 187 212 . . 135 33 249 224 2051 287 1649 752 1395 745 2825 1029 Explosive 3870 | . 376 1017 220 . . . . . . . . 243 . 470 . 37 . 183 1324 Electromagnetic 1375 | . 97 . . 463 795 20 . . . . . . . . . . . . . Impact 1024 | . . . . . 96 . 592 . 94 128 . 114 . . . . . . . Slashing 778 | . . 122 . . . . . . . . . . . . 76 . 309 271 . Piercing . | . . . . . . . . . . . . . . . . . . . . Highest Corruption 29 | . . 7 . 1 1 . 1 . . 1 1 1 1 6 8 5 6 12 29 Average Corruption 4 | . . 5 . 1 1 . 1 . . 1 1 1 1 5 6 4 5 8 12 Corruption Purged 7 | . . . . . . . . . . . . 1 . 3 3 . . . . Corruption Blocked . | . . . . . . . . . . . . . . . . . . . . Effects 311 | . . 27 . 1 10 . 5 . . 1 8 10 9 19 24 25 35 102 35 Message Errors 84 | . . 4 . 1 5 . . . . . 1 4 4 8 6 8 9 26 8 Matter Fused 51 | . . 6 . . 2 . . . . . . 3 . 4 3 5 3 16 9 Heat Flow Errors 35 | . . 7 . . . . 1 . . . 1 . . 1 2 4 5 11 3 Energy Discharges 40 | . . 5 . . 3 . 1 . . 1 . . 4 1 1 2 5 11 6 Parts Rejected 3 | . . . . . . . . . . . . 1 . . . . . 2 . Parts Fused 6 | . . 1 . . . . . . . . . . . 1 . . 2 2 . Data Loss (minor) 35 | . . 2 . . . . 2 . . . 2 . 1 1 5 5 3 9 5 Data Loss (major) 22 | . . . . . . . 1 . . . 1 1 . 1 4 . 3 11 . Misfires 10 | . . 1 . . . . . . . . 1 . . . 1 . 1 4 2 Alerts 12 | . . 1 . . . . . . . . 2 1 . 1 . . 3 4 . Misdirections 2 | . . . . . . . . . . . . . . . . . . 2 . Weapon Failures 11 | . . . . . . . . . . . . . . 1 2 1 1 4 2 Overload Shots 11 | . . . . . . . . . . . . 9 . . . . . . 2 Overflow Damage 1272 | . 4 45 25 . 24 . 512 . 94 74 . 118 26 56 . 91 . 185 18 Projectiles 310 | . . . 25 . . . . . . . . 30 26 56 . 83 . 72 18 Explosions 106 | . 4 35 . . 17 . . . . 50 . . . . . . . . . Melee 856 | . . 10 . . 7 . 512 . 94 24 . 88 . . . 8 . 113 . Knockbacks 35 | . . . 5 . . . 1 . 1 1 . 1 . 2 1 9 . 9 5 Impact 6 | . . . . . . . 1 . 1 1 . 1 . . . 2 . . . Kinetic 24 | . . . 3 . . . . . . . . . . 1 1 6 . 9 4 Secondary 5 | . . . 2 . . . . . . . . . . 1 . 1 . . 1 Self-Inflicted Damage 603 | . 37 249 10 24 86 . . . . 94 . 21 . 82 . . . . . Shots 17 | . 1 7 1 1 2 . . . . 2 . 1 . 2 . . . . . Rammed 9 | . . . . . . . . . . . . 1 . . . 6 . 2 . Targets Rammed 12 | . . . . . . . . . . . . 1 . . . 7 . 3 1 Kicked . | . . . . . . . . . . . . . . . . . . . . Crushed 3 | . . . . . . . . . . . . . . . . 1 . 1 1 Highest Temperature 402 | . 62 269 402 147 4 . 131 18 26 . 48 288 5 265 344 394 235 352 226 Average Temperature 69 | . 17 112 125 59 2 . 81 9 22 . 48 63 3 68 114 70 54 83 52 Received Heat Transfer 3297 | . 201 26 240 141 207 . . 27 113 15 . 258 75 534 171 114 209 243 723 Effects 6 | . . 1 . . . . . . . . . . . . . 2 . 3 . Shutdowns 1 | . . . . . . . . . . . . . . . . 1 . . . Energy Bleed 2 | . . 1 . . . . . . . . . . . . . 1 . . . Interference 2 | . . . . . . . . . . . . . . . . . . 2 . Short Circuit 1 | . . . . . . . . . . . . . . . . . . 1 . Siege Activations 6 | . . . . . . . . . . . . . . . 1 3 1 1 . Total Turns 104 | . . . . . . . . . . . . . . . 20 40 26 18 . Longest Duration 28 | . . . . . . . . . . . . . . . 20 28 26 18 . Robots Corrupted 2 | . . . . . . . . . 1 . . 1 . . . . . . . Combat Hostiles 2 | . . . . . . . . . 1 . . 1 . . . . . . . Parts Fried 10 | . 1 . . 1 5 . 1 . 1 . . . . . . 1 . . . Impact Corruptions 13 | . . . . . 1 . 7 . 2 1 . 1 . . . 1 . . . Robots Melted 12 | . . . . . . . . . . . . 1 1 4 . . 1 5 . Combat Hostiles 10 | . . . . . . . . . . . . . 1 4 . . 1 4 . Parts Melted 39 | . . . . . 1 . . . 1 . . 6 2 13 2 1 1 11 1 Heat Transferred 16058 | . 50 . 296 300 350 . . 185 37 250 350 2870 425 2373 892 1701 1031 3602 1346 Parts Sabotaged . | . . . . . . . . . . . . . . . . . . . . Parts Stolen . | . . . . . . . . . . . . . . . . . . . . Parts Stripped . | . . . . . . . . . . . . . . . . . . . . Power Chain Reactions 10 | . 1 . . 5 4 . . . . . . . . . . . . . . Alert | -11 -10 -10 -9 -9 -9 -8 -8 -7 -7 -6 -6 -6 -6 -5 -5 -4 -4 -4 -4 ------- Run | Yrd Mat Min Mat Sto Gar Mat Gar Fac Gar Fac Was Fac Gar Fac Gar Fac Gar Fac Ext Peak Influence 1923 | 10 240 257 383 447 1089 665 929 1162 1923 1079 363 304 1012 766 999 669 1068 821 793 Initial 1009 | . 6 72 . 9 133 530 302 487 813 1009 363 9 212 531 228 524 429 550 401 Average 461 | 3 136 100 151 231 660 549 560 863 1390 1015 258 142 666 415 526 489 654 396 512 Maximum Alert Level 5 | . 1 1 1 2 3 2 3 4 5 3 1 1 3 3 3 2 3 3 3 Low Security (%) 27 | 100 75 76 66 43 8 . . . . . 50 71 . 12 . . . 16 . Level 1 22 | . 24 23 33 47 8 . 3 . . . 49 28 18 34 35 9 . 47 . Level 2 28 | . . . . 8 34 100 70 25 . . . . 33 45 37 90 67 23 98 Level 3 16 | . . . . . 48 . 26 66 16 100 . . 48 8 26 . 32 12 . Level 4 3 | . . . . . . . . 8 59 . . . . . . . . . . Level 5 1 | . . . . . . . . . 24 . . . . . . . . . . High Security . | . . . . . . . . . . . . . . . . . . . . Max Security . | . . . . . . . . . . . . . . . . . . . . Squads Dispatched 60 | . 3 . 3 5 . . . 2 . 2 . 12 . 8 . 8 . 12 5 Investigation 11 | . 2 . 2 1 . . . . . 1 . 2 . . . 2 . 1 . Extermination 15 | . . . . . . . . 1 . 1 . 4 . 3 . 2 . 4 . Reinforcement 14 | . 1 . 1 1 . . . . . . . 4 . 4 . . . 2 1 Assault 9 | . . . . . . . . 1 . . . . . 1 . 2 . 1 4 Garrison 11 | . . . . 3 . . . . . . . 2 . . . 2 . 4 . Intercept . | . . . . . . . . . . . . . . . . . . . . Searches Triggered . | . . . . . . . . . . . . . . . . . . . . Construction Impeded 2 | . . . . . . . . . . . . 1 . 1 . . . . . Haulers Reinforced 4 | . . . . . . . . . . . . 1 . 1 . . . 2 . Active Scanning Responses . | . . . . . . . . . . . . . . . . . . . . Cargo Convoy Interrupts 1 | . . . . . . . . . . . . . . 1 . . . . . Stealth | -11 -10 -10 -9 -9 -9 -8 -8 -7 -7 -6 -6 -6 -6 -5 -5 -4 -4 -4 -4 --------- Run | Yrd Mat Min Mat Sto Gar Mat Gar Fac Gar Fac Was Fac Gar Fac Gar Fac Gar Fac Ext Distress Signals 12 | . 2 . 2 4 . 1 . . . . . 1 . . . . . 2 . Communications Jammed 496 | . . . . . . . . . . . . . . 2 . 178 . 79 237 Distress Signals 494 | . . . . . . . . . . . . . . 1 . 178 . 78 237 Times Spotted 559 | . 28 21 29 30 28 4 . 18 34 8 . 57 27 53 29 43 30 77 43 Peak Tracking Total 15 | . 5 6 4 4 3 4 . 4 6 2 . 5 6 9 8 5 8 5 15 Tactical Retreats 16 | . 3 2 . 2 . . . 1 1 . . . . 2 . . 1 4 . Traps | -11 -10 -10 -9 -9 -9 -8 -8 -7 -7 -6 -6 -6 -6 -5 -5 -4 -4 -4 -4 ------- Run | Yrd Mat Min Mat Sto Gar Mat Gar Fac Gar Fac Was Fac Gar Fac Gar Fac Gar Fac Ext Traps Triggered 21 | . . . . . 1 . . . 7 2 . . . . 3 2 4 2 . Indirectly . | . . . . . . . . . . . . . . . . . . . . Trap Hack Attempts . | . . . . . . . . . . . . . . . . . . . . Triggered . | . . . . . . . . . . . . . . . . . . . . Disarmed 13 | . . . 1 . . . . . . . . 12 . . . . . . . Reprogrammed . | . . . . . . . . . . . . . . . . . . . . Reused . | . . . . . . . . . . . . . . . . . . . . Traps Extracted . | . . . . . . . . . . . . . . . . . . . . Installed . | . . . . . . . . . . . . . . . . . . . . Triggered . | . . . . . . . . . . . . . . . . . . . . Machines | -11 -10 -10 -9 -9 -9 -8 -8 -7 -7 -6 -6 -6 -6 -5 -5 -4 -4 -4 -4 ---------- Run | Yrd Mat Min Mat Sto Gar Mat Gar Fac Gar Fac Was Fac Gar Fac Gar Fac Gar Fac Ext Machines Disabled 57 | . 3 . 1 7 3 . 1 . 3 3 . 1 4 7 7 2 5 8 2 Max in Single Turn 3 | . 1 . 1 1 1 . 1 . 1 2 . . 1 3 1 . 1 1 1 Garrison Access 5 | . . . . . . . . . . . . 2 . 1 . . . 2 . Garrison Relay 18 | . . . . . 3 . 1 . 2 . . . 4 . 5 . 3 . . Machines Repaired . | . . . . . . . . . . . . . . . . . . . . Machines Dismantled 4 | . . . . . . . . . 1 . . . . . . . 1 . 2 Machines Sabotaged . | . . . . . . . . . . . . . . . . . . . . Overloaded Fab Kills . | . . . . . . . . . . . . . . . . . . . . Hacking | -11 -10 -10 -9 -9 -9 -8 -8 -7 -7 -6 -6 -6 -6 -5 -5 -4 -4 -4 -4 --------- Run | Yrd Mat Min Mat Sto Gar Mat Gar Fac Gar Fac Was Fac Gar Fac Gar Fac Gar Fac Ext Machines Accessed 126 | . 11 . 11 6 3 6 3 1 2 3 . 25 4 14 2 8 3 20 4 Terminals 78 | . 8 . 10 5 3 4 3 . 2 . . 11 4 7 2 2 3 10 4 Fabricators 16 | . . . . . . . . . . 2 . 4 . 4 . 3 . 3 . Repair Stations 8 | . 1 . . . . 1 . . . . . 2 . . . 2 . 2 . Recycling Units 10 | . 2 . 1 . . . . . . 1 . 2 . 1 . . . 3 . Scanalyzers 3 | . . . . . . . . . . . . 3 . . . . . . . Garrison Access 11 | . . . . 1 . 1 . 1 . . . 3 . 2 . 1 . 2 . Total Hacks 385 | . 36 . 31 17 10 15 6 1 3 5 . 78 7 70 6 28 6 59 7 Successful 220 | . 21 . 19 8 1 9 2 1 1 1 . 54 5 45 4 14 1 32 2 Failed 165 | . 15 . 12 9 9 6 4 . 2 4 . 24 2 25 2 14 5 27 5 Catastrophic 21 | . . . 1 1 . 1 2 . 1 . . 5 1 1 . 3 1 3 1 Database Lockouts . | . . . . . . . . . . . . . . . . . . . . Manual 204 | . 26 . 22 14 . 8 1 . . 1 . 41 2 49 3 14 . 23 . Terminals 244 | . 32 . 29 16 10 10 6 . 3 . . 37 7 45 6 8 6 22 7 Fabricators 55 | . . . . . . . . . . 3 . 10 . 19 . 13 . 10 . Repair Stations 26 | . 2 . . . . 3 . . . . . 3 . . . 5 . 13 . Recycling Units 29 | . 2 . 2 . . . . . . 2 . 9 . 3 . . . 11 . Scanalyzers 15 | . . . . . . . . . . . . 15 . . . . . . . Garrison Access 16 | . . . . 1 . 2 . 1 . . . 4 . 3 . 2 . 3 . Terminal Hacks 62 | . 5 . 7 2 1 1 2 . 1 . . 14 4 13 2 . 1 7 2 Part Schematic 1 | . . . . . . . . . . . . 1 . . . . . . . Robot Schematic 3 | . . . . . . . . . . . . 1 . 2 . . . . . Prototype ID Bank 3 | . 1 . . . . . . . . . . . . 2 . . . . . Open Door 5 | . . . . . 1 . 1 . . . . . 1 . . . . 1 1 Branch Access Points 2 | . . . 1 . . . . . . . . . . . . . . 1 . Emergency Access Points 4 | . . . . . . . 1 . 1 . . . 1 . 1 . . . . Machine Index 1 | . . . . . . . . . . . . 1 . . . . . . . Terminal Index 3 | . 1 . . . . . . . . . . 1 . 1 . . . . . Garrison Index 1 | . . . . . . . . . . . . . . 1 . . . . . Alert Level 1 | . . . . 1 . . . . . . . . . . . . . . . Unreport Threat 8 | . . . . . . . . . . . . 1 . 4 . . . 2 1 Locate Traps 12 | . 2 . 2 1 . 1 . . . . . 3 . 1 . . . 2 . Disarm Traps 5 | . . . 2 . . . . . . . . 3 . . . . . . . Recall Investigation 1 | . . . . . . . . . . . . 1 . . . . . . . Zone Layout 8 | . 1 . 2 . . . . . . . . 2 . 2 . . . 1 . Garrison Registry 3 | . . . . . . . . . . . . . 1 . 1 . 1 . . Patrol Navigation 1 | . . . . . . . . . . . . . 1 . . . . . . Fabricator Hacks 20 | . . . . . . . . . . . . 2 . 8 . 5 . 5 . Network Status 3 | . . . . . . . . . . . . . . 1 . 1 . 1 . Load Schematic 10 | . . . . . . . . . . . . 2 . 3 . 3 . 2 . Build 7 | . . . . . . . . . . . . . . 4 . 1 . 2 . Repair Station Hacks 14 | . 2 . . . . 2 . . . . . 2 . . . 3 . 5 . Scan Component 8 | . 1 . . . . 1 . . . . . 1 . . . 2 . 3 . Repair 6 | . 1 . . . . 1 . . . . . 1 . . . 1 . 2 . Recycling Unit Hacks 2 | . . . . . . . . . . . . 1 . . . . . 1 . Retrieve Components 2 | . . . . . . . . . . . . 1 . . . . . 1 . Scanalyzer 12 | . . . . . . . . . . . . 12 . . . . . . . Insert Component 5 | . . . . . . . . . . . . 5 . . . . . . . Analyze 7 | . . . . . . . . . . . . 7 . . . . . . . Garrison Access Hacks 15 | . . . . 1 . 2 . 1 . . . 4 . 3 . 1 . 3 . Unlock Access 6 | . . . . 1 . 1 . 1 . . . 1 . 1 . 1 . . . Seal Access 5 | . . . . . . . . . . . . 2 . 1 . . . 2 . Coupler Status 4 | . . . . . . 1 . . . . . 1 . 1 . . . 1 . Unauthorized Hacks 95 | . 14 . 12 5 . 4 . . . 1 . 19 1 21 2 5 . 11 . Terminals 60 | . 12 . 12 5 . 4 . . . . . 9 1 12 2 1 . 2 . Track 9 | . 1 . 2 1 . 1 . . . . . 1 . 2 1 . . . . Assimilate 7 | . 3 . 2 1 . . . . . . . . . 1 . . . . . Botnet 13 | . 2 . 2 1 . 1 . . . . . 2 1 2 1 . . 1 . Disrupt 1 | . . . . 1 . . . . . . . . . . . . . . . Operators 8 | . 1 . 1 1 . 1 . . . . . 1 . 1 . 1 . 1 . Skim 22 | . 5 . 5 . . 1 . . . . . 5 . 6 . . . . . Fabricators 15 | . . . . . . . . . . 1 . 3 . 7 . 3 . 1 . Prioritize 5 | . . . . . . . . . . . . . . 3 . 1 . 1 . Liberate 3 | . . . . . . . . . . . . . . 3 . . . . . Haulers 4 | . . . . . . . . . . 1 . 1 . 1 . 1 . . . Recompile 3 | . . . . . . . . . . . . 2 . . . 1 . . . Repair Stations 4 | . . . . . . . . . . . . 1 . . . 1 . 2 . Mechanics 3 | . . . . . . . . . . . . 1 . . . 1 . 1 . Patch 1 | . . . . . . . . . . . . . . . . . . 1 . Recycling Units 16 | . 2 . . . . . . . . . . 6 . 2 . . . 6 . Monitor 1 | . . . . . . . . . . . . 1 . . . . . . . Reject 6 | . . . . . . . . . . . . 2 . 1 . . . 3 . Recyclers 2 | . . . . . . . . . . . . 1 . . . . . 1 . Mask 5 | . . . . . . . . . . . . 2 . 1 . . . 2 . Tunnel 2 | . 2 . . . . . . . . . . . . . . . . . . Scanalyzers . | . . . . . . . . . . . . . . . . . . . . Garrison Access . | . . . . . . . . . . . . . . . . . . . . Data Cores Recovered . | . . . . . . . . . . . . . . . . . . . . Used . | . . . . . . . . . . . . . . . . . . . . Hacking Detections 109 | . 8 . 11 6 3 5 2 . 2 3 . 21 4 12 2 7 3 17 3 Full Trace Events 5 | . . . . . 2 . 1 . . . . . . . . 1 1 . . Feedback Events 1 | . . . . . . . 1 . . . . . . . . . . . . Corruption 1 | . . . . . . . 1 . . . . . . . . . . . . Feedback Blocked . | . . . . . . . . . . . . . . . . . . . . Robot Schematics Acquired 3 | . . . . . . . . . . . . 1 . 2 . . . . . Robots Built 12 | . . . . . . . . . . . . . . 7 . 2 . 3 . Authchips 6 | . . . . . . . . . . . . . . 3 . 1 . 2 . Time 505 | . . . . . . . . . . . . . . 279 . 84 . 142 . Total Robot Build Rating 64 | . . . . . . . . . . . . . . 37 . 12 . 15 . Part Schematics Acquired 4 | . . . . . . . . . . . . 4 . . . . . . . Parts Built . | . . . . . . . . . . . . . . . . . . . . Authchips . | . . . . . . . . . . . . . . . . . . . . Time . | . . . . . . . . . . . . . . . . . . . . Total Part Build Rating . | . . . . . . . . . . . . . . . . . . . . Parts Repaired 6 | . 1 . . . . 1 . . . . . 1 . . . 1 . 2 . Time 326 | . 26 . . . . 26 . . . . . 68 . . . 38 . 168 . Parts Recycled . | . . . . . . . . . . . . . . . . . . . . Recycled Matter . | . . . . . . . . . . . . . . . . . . . . Retrieved Matter . | . . . . . . . . . . . . . . . . . . . . Retrieved Components 18 | . . . . . . . . . . . . 9 . . . . . 9 . Parts Scanalyzed 3 | . . . . . . . . . . . . 3 . . . . . . . Part Schematics Acquired 3 | . . . . . . . . . . . . 3 . . . . . . . Parts Damaged 1 | . . . . . . . . . . . . 1 . . . . . . . Bothacking | -11 -10 -10 -9 -9 -9 -8 -8 -7 -7 -6 -6 -6 -6 -5 -5 -4 -4 -4 -4 ------------ Run | Yrd Mat Min Mat Sto Gar Mat Gar Fac Gar Fac Was Fac Gar Fac Gar Fac Gar Fac Ext Used RIF Installer 6 | . . . . . 1 . 1 . 1 . . . 1 . 1 . 1 . . Code Merge 1 | . . . . . . . . . . . . . . . 1 . . . . Watcher Feeds 1 | . . . . . . . . . 1 . . . . . . . . . . Program Shield 1 | . . . . . . . 1 . . . . . . . . . . . . Autooverride 1 | . . . . . . . . . . . . . 1 . . . . . . Autoassimilate 1 | . . . . . . . . . . . . . . . . . 1 . . Robots Hacked 158 | . . . . 1 . . . 5 14 8 . 20 12 19 16 20 18 20 5 Non-combat 36 | . . . . . . . . 3 . 3 . 5 . 8 . 10 . 5 2 Combat 122 | . . . . 1 . . . 2 14 5 . 15 12 11 16 10 18 15 3 Autooverrided 12 | . . . . . . . . . . . . . . 1 3 2 3 2 1 Autoassimilated 2 | . . . . . . . . . . . . . . . . . 1 1 . Robot Hacks Applied 162 | . . . . 1 . . . 7 15 8 . 23 12 24 15 19 15 19 4 parse_system 15 | . . . . 1 . . . 2 1 1 . . . 2 4 . . 2 2 find_chute 1 | . . . . . . . . . . 1 . . . . . . . . . deconstruct_machine 2 | . . . . . . . . . . . . . . 1 . 1 . . . ignore_repairs 9 | . . . . . . . . . . . . . . 3 . 4 . 2 . find_fabricator 5 | . . . . . . . . 1 . . . 1 . 2 . . . 1 . drop_inventory 6 | . . . . . . . . . . 1 . 2 . 2 . . . 1 . find_recycling 1 | . . . . . . . . . . . . . . . . 1 . . . ignore_parts 3 | . . . . . . . . . . 1 . . . . . 1 . 1 . purge_threat 4 | . . . . . . . . . . . . 1 . 3 . . . . . block_reporting 1 | . . . . . . . . . . . . 1 . . . . . . . map_route 1 | . . . . . . . . . . . . . . . . 1 . . . find_garrison 1 | . . . . . . . . 1 . . . . . . . . . . . amplify_resonance 22 | . . . . . . . . . 3 . . 3 4 4 2 1 3 2 . wipe_record 2 | . . . . . . . . . . . . . . . . . . 2 . disable_weapons 1 | . . . . . . . . . 1 . . . . . . . . . . reboot_system 15 | . . . . . . . . . 1 1 . 3 2 1 1 . 5 1 . overwrite_iff 29 | . . . . . . . . . 7 1 . 4 2 3 3 3 4 2 . formatsys_low 10 | . . . . . . . . 2 . . . 3 . . . 2 . 1 2 formatsys_high 33 | . . . . . . . . 1 2 2 . 5 4 3 5 5 3 3 . formatsys_deep 1 | . . . . . . . . . . . . . . . . . . 1 . Relay Couplers Released 84 | . . . . . 11 . 3 . 12 . . 4 15 1 25 . 13 . . Machine Destruction 77 | . . . . . 11 . 3 . 9 . . 4 15 1 21 . 13 . . Programmers 7 | . . . . . . . . . 3 . . . . . 4 . . . . Attached 45 | . . . . . . . . 2 6 2 . 4 7 4 8 3 5 4 . Fabnet Peak Effective % . | . . . . . . . . . . . . . . . . . . . . Robots Rewired 40 | . . . . . 6 . 19 . 2 . . . . . . . 3 . 10 Allies Hacked 4 | . . . . . . . . . 1 . . 1 . . 1 1 . . . Hacks Repelled . | . . . . . . . . . . . . . . . . . . . . Allies | -11 -10 -10 -9 -9 -9 -8 -8 -7 -7 -6 -6 -6 -6 -5 -5 -4 -4 -4 -4 -------- Run | Yrd Mat Min Mat Sto Gar Mat Gar Fac Gar Fac Was Fac Gar Fac Gar Fac Gar Fac Ext Total Allies 157 | . . 2 1 . 6 . 19 3 11 3 . 12 10 17 12 14 15 16 16 Largest Group 21 | . . 2 1 . 4 3 21 17 11 8 7 7 9 9 6 8 8 7 11 Highest-Rated Group 541 | . . 45 10 . 101 93 494 430 291 238 209 209 310 336 188 370 330 250 541 Highest-Rated Ally 159 | . . 31 10 . 31 31 40 40 40 40 40 47 80 113 54 65 65 65 159 Total Orders 165 | . . . 2 . 2 2 2 7 8 1 1 43 19 10 13 11 6 17 21 STAY 74 | . . . 1 . 1 1 . 2 3 . . 21 7 4 6 4 3 9 12 ROAM 3 | . . . . . . . 2 . . . . . 1 . . . . . . FOLLOW 48 | . . . 1 . 1 1 . 2 2 . . 13 5 3 5 3 3 5 4 AID 36 | . . . . . . . . 3 3 1 1 5 6 3 2 4 . 3 5 EXPLORE 4 | . . . . . . . . . . . . 4 . . . . . . . Ally Attacks 1025 | . . 2 . . 27 15 . 113 145 26 . 139 45 133 51 52 75 102 100 Total Damage 28007 | . . 40 . . 219 280 . 2780 3060 739 . 4227 1609 3918 1439 1872 2209 2314 3301 Kills 199 | . . 1 . . 3 4 . 26 32 4 . 36 13 25 7 7 9 14 18 Allies Corrupted 6 | . . . . . . . . . 2 . . . . 1 . 2 . 1 . Allies Melted 4 | . . . . . . . . . 1 . . . . . . 1 1 . 1 Intel | -11 -10 -10 -9 -9 -9 -8 -8 -7 -7 -6 -6 -6 -6 -5 -5 -4 -4 -4 -4 ------- Run | Yrd Mat Min Mat Sto Gar Mat Gar Fac Gar Fac Was Fac Gar Fac Gar Fac Gar Fac Ext Robot Analysis Total . | . . . . . . . . . . . . . . . . . . . . Derelict Logs Recovered 1 | . . 1 . . . . . . . . . . . . . . . . . Drone Launches 3 | . . . . . . . . . . . . 3 . . . . . . . Drone Recoveries 1 | . . . . . . . . . . . . 1 . . . . . . . Exploration | -11 -10 -10 -9 -9 -9 -8 -8 -7 -7 -6 -6 -6 -6 -5 -5 -4 -4 -4 -4 ------------- Run | Yrd Mat Min Mat Sto Gar Mat Gar Fac Gar Fac Was Fac Gar Fac Gar Fac Gar Fac Ext Turns Passed 27684 | 198 1812 1095 1731 1097 1657 429 1285 750 1579 582 813 3134 1450 1963 1282 1619 1297 2999 912 Spaces Moved 14045 | 92 913 625 944 528 754 256 775 437 747 328 253 1712 794 1008 625 817 612 1407 418 Core 2 | 2 . . . . . . . . . . . . . . . . . . . Treads 10196 | 90 891 304 359 528 754 50 . . . 328 253 1712 794 1008 625 817 612 653 418 Legs . | . . . . . . . . . . . . . . . . . . . . Wheels 3847 | . 22 321 585 . . 206 775 437 747 . . . . . . . . 754 . Hover . | . . . . . . . . . . . . . . . . . . . . Flight . | . . . . . . . . . . . . . . . . . . . . Fastest Speed 50 | 50 105 110 110 160 160 150 150 150 150 160 160 160 160 160 160 156 155 148 153 Average Speed 157 | 157 163 137 147 160 160 152 150 150 150 160 160 160 160 160 160 160 170 162 161 Slowest Speed 240 | 160 240 160 240 160 240 163 150 150 150 160 160 160 160 240 240 240 235 228 239 Overloaded Moves . | . . . . . . . . . . . . . . . . . . . . Propulsion Burnouts . | . . . . . . . . . . . . . . . . . . . . Robots Hopped . | . . . . . . . . . . . . . . . . . . . . Cave-ins Triggered . | . . . . . . . . . . . . . . . . . . . . Exploration Rate (%) 57 | 5 94 96 58 65 82 21 97 9 84 14 89 61 85 33 67 32 67 44 51 Regions Visited 19 Branch Regions 3 Pre-discovered Areas 10 | . 3 . 5 . . . . . . . . 2 . . . . . . . Known Exits Taken 10 | . 1 1 1 1 . 1 . 1 . . . 1 . 1 . 1 . 1 . Unknown Exits Taken 1 | 1 . . . . . . . . . . . . . . . . . . . Scrap Searched . | . . . . . . . . . . . . . . . . . . . . Spaces Dug 274 | . 12 27 8 7 44 4 1 4 23 . . 37 4 19 8 27 13 30 6 Terrain Destroyed 664 | . 38 114 27 25 57 4 1 4 28 29 . 50 5 58 10 47 15 119 33 Melee 119 | . 1 . . 6 44 4 1 3 23 . . 1 4 . 8 . 13 11 . Projectile 207 | . . 1 7 1 . . . 1 5 . . 30 1 44 2 41 2 61 11 AOE 338 | . 37 113 20 18 13 . . . . 29 . 19 . 14 . 6 . 47 22 Terrain Rammed . | . . . . . . . . . . . . . . . . . . . . Walls Destroyed . | . . . . . . . . . . . . . . . . . . . . Machines Disabled . | . . . . . . . . . . . . . . . . . . . . Actions | -11 -10 -10 -9 -9 -9 -8 -8 -7 -7 -6 -6 -6 -6 -5 -5 -4 -4 -4 -4 --------- Run | Yrd Mat Min Mat Sto Gar Mat Gar Fac Gar Fac Was Fac Gar Fac Gar Fac Gar Fac Ext Total 17763 | 121 1101 822 1143 691 964 287 875 503 1013 374 656 1977 921 1249 822 1011 763 1902 568 Wait 1371 | 2 69 137 71 66 33 . 20 26 18 . 383 74 20 83 45 44 6 236 38 Move 14030 | 91 912 624 943 528 753 256 773 436 746 328 252 1712 793 1007 624 817 611 1406 418 Hop . | . . . . . . . . . . . . . . . . . . . . Pick Up 250 | 8 14 10 20 10 7 11 14 2 19 7 5 14 15 20 26 6 15 22 5 Fast Attach 45 | 6 . 2 3 . 2 1 1 1 1 . . 10 . 4 4 2 5 3 . Attach 106 | 1 3 5 7 . 5 3 . 1 2 4 . 6 1 13 15 9 3 17 11 Detach 20 | . . 2 . . . 1 . . 1 3 . 1 . 4 2 2 1 2 1 Swap 438 | . 21 11 18 31 36 5 4 15 28 8 7 38 25 25 26 30 39 52 19 Drop 180 | . 6 3 14 14 5 5 16 2 21 6 6 17 14 11 11 5 7 14 3 Fire 919 | 13 72 25 67 23 40 1 . 7 74 14 3 95 46 81 51 90 43 118 56 Melee 285 | . 4 3 . 19 83 4 47 10 41 3 . 7 5 1 17 . 22 19 . Ram . | . . . . . . . . . . . . . . . . . . . . Kick . | . . . . . . . . . . . . . . . . . . . . Crush 11 | . . . . . . . . . . . . 1 . . . 6 . 3 1 Escape Stasis 61 | . . . . . . . . . 53 . . . . . . . . 8 . Rewire 14 | . . . . . . . . 3 1 1 . 2 2 . 1 . 3 1 . Trap . | . . . . . . . . . . . . . . . . . . . . Miscellaneous 33 | . . . . . . . . . 8 . . . . . . . 8 1 16 Route ------- -11/Scrapyard -10/Materials (discovered 6 exits: *Mat x3 / *Min x2 / Sub) -10/Mines (discovered 4 exits: *Mat x2 / Exi / Sub) -9/Materials (discovered 5 exits: *Mat x3 / *Min / *Sto) -9/Storage -9/Garrison (discovered 3 exits: *Mat x3) -8/Materials -8/Garrison (discovered 3 exits: *Fac x3) -7/Factory (discovered 2 exits: [*Low] / Gar) -7/Garrison (discovered 3 exits: *Fac x3) -6/Factory -6/Waste -6/Factory (discovered 7 exits: *Fac x4 / *Low x2 / Gar) -6/Garrison (discovered 3 exits: *Fac x3) -5/Factory (discovered 4 exits: *Fac x2 / [*Upp] / Gar) -5/Garrison (discovered 3 exits: *Fac x3) -4/Factory (discovered 3 exits: *Res x2 / Gar) -4/Garrison (discovered 4 exits: *Res x3 / *Fac) -4/Factory (discovered 4 exits: Upp x2 / *Ext x2) -4/Extension History --------- Turn | Location | Event 28 | -11/Scrapyard | Discovered new exit (range 16) 199 | -11/Scrapyard | Entered Materials 323 | -10/Materials | Build established: Mutant 437 | -10/Materials | Discovered new exit (range 5) 549 | -10/Materials | Discovered new exit (range 14) 1014 | -10/Materials | Repaired Lgt. Treads? 1026 | -10/Materials | Discovered new exit (range 9) 1361 | -10/Materials | Discovered new exit (range 14) 1461 | -10/Materials | Learned location of Mines (-10) 1499 | -10/Materials | Identified exit to Materials 1499 | -10/Materials | Identified exit to Subcaves 1526 | -10/Materials | Learned Storage stockpile data 1549 | -10/Materials | Identified exit to Mines 1564 | -10/Materials | Learned location of 2 exits from Mines 2011 | -10/Materials | Entered Mines 2012 | -10/Mines | Assembled infested the area 2013 | -10/Mines | Identified exit to Exiles 2050 | -10/Mines | Core integrity fell below 50% 2079 | -10/Mines | Destroyed 12 combat bots 2082 | -10/Mines | Lost 3 parts (1p1u1w) 2452 | -10/Mines | A weapon hastily lodged in a ceiling crevice suddenly fell to the ground 2537 | -10/Mines | Deemed a non-threat by the Exiles lab entrance 2744 | -10/Mines | Found a damaged Exp. Sensor Array with a note attached 2746 | -10/Mines | Found Prototype Device 2955 | -10/Mines | Learned Materials terminal intel 3106 | -10/Mines | Entered Materials 3106 | -9/Materials | Evolved 2 slots: Propulsion x1, Utility x1 3107 | -9/Materials | Identified exit to Materials 3108 | -9/Materials | Loaded intel: 12 terminal locations 3329 | -9/Materials | Discovered exit to Materials (range 12) 3336 | -9/Materials | Identified exit to Mines 3336 | -9/Materials | Identified exit to Storage 3404 | -9/Materials | Build established: Scavenger-Mutant 3726 | -9/Materials | Build established: Mutant 3760 | -9/Materials | Learned location of Storage (-9) 3851 | -9/Materials | Learned Storage stockpile data 3860 | -9/Materials | Learned location of Zion (-6) 4524 | -9/Materials | Build established: Scavenger-Mutant 4837 | -9/Materials | Entered Storage 4992 | -9/Storage | Garrison activated, responded to threat 5166 | -9/Storage | Met 01-MTF 5934 | -9/Storage | Identified exit to Garrison 5934 | -9/Storage | Entered Garrison 5958 | -9/Garrison | Build established: Mutant 6217 | -9/Garrison | Garrison Relay disabled 6320 | -9/Garrison | Triggered checkpoint 6471 | -9/Garrison | Discovered exit to Materials (range 10) 6592 | -9/Garrison | Triggered checkpoint 6658 | -9/Garrison | Garrison Relay disabled 6900 | -9/Garrison | Triggered checkpoint 6913 | -9/Garrison | Core integrity fell below 50% 7000 | -9/Garrison | Discovered exit to Materials (range 10) 7032 | -9/Garrison | Triggered checkpoint 7148 | -9/Garrison | Installed Relay Interface Framework 7354 | -9/Garrison | Triggered checkpoint 7389 | -9/Garrison | Garrison Relay disabled 7436 | -9/Garrison | Build established: Bothacker-Mutant 7462 | -9/Garrison | Discovered exit to Materials (range 10) 7591 | -9/Garrison | Entered Materials 7591 | -8/Materials | Accompanied by 3 allies 7591 | -8/Materials | Evolved 2 slots: Utility x2 7868 | -8/Materials | Repaired Lgt. Armor Plating 8020 | -8/Materials | Identified exit to Garrison 8020 | -8/Materials | Entered Garrison 8020 | -8/Garrison | Discovered recently destroyed garrison 8020 | -8/Garrison | Accompanied by 2 allies 8074 | -8/Garrison | Expanded RIF knowledge: Program Shield 8311 | -8/Garrison | Garrison Relay disabled 8467 | -8/Garrison | Build established: Commander-Mutant 8509 | -8/Garrison | Discovered new exit (range 3) 8791 | -8/Garrison | Discovered new exit (range 12) 9100 | -8/Garrison | Discovered new exit (range 15) 9305 | -8/Garrison | Entered Factory 9305 | -7/Factory | Accompanied by 17 allies 9305 | -7/Factory | Evolved 2 slots: Utility x2 9705 | -7/Factory | First assault squad dispatched 9982 | -7/Factory | Discovered new exit (range 14) 9993 | -7/Factory | Identified exit to Garrison 10055 | -7/Factory | Entered Garrison 10055 | -7/Garrison | Accompanied by 11 allies 10071 | -7/Garrison | Triggered checkpoint 10145 | -7/Garrison | Triggered checkpoint 10227 | -7/Garrison | Garrison Relay disabled 10594 | -7/Garrison | Build established: Bothacker-Mutant 10697 | -7/Garrison | Triggered checkpoint 10718 | -7/Garrison | Triggered checkpoint 10741 | -7/Garrison | Triggered checkpoint 10754 | -7/Garrison | Triggered checkpoint 10772 | -7/Garrison | Lost 5 allies 10787 | -7/Garrison | Expanded RIF knowledge: Watcher Feeds 10931 | -7/Garrison | Discovered new exit (range 10) 10961 | -7/Garrison | Triggered checkpoint 11271 | -7/Garrison | Triggered checkpoint 11361 | -7/Garrison | Discovered new exit (range 8) 11441 | -7/Garrison | Triggered checkpoint 11495 | -7/Garrison | Triggered checkpoint 11508 | -7/Garrison | Garrison Relay disabled 11529 | -7/Garrison | Lost 3 allies 11587 | -7/Garrison | Discovered new exit (range 14) 11634 | -7/Garrison | Entered Factory 11634 | -6/Factory | Accompanied by 5 allies 11634 | -6/Factory | Evolved 2 slots: Propulsion x1, Utility x1 12216 | -6/Factory | Sucked down chute 12216 | -6/Factory | Entered Waste 12216 | -6/Waste | The area was eerily silent 12267 | -6/Waste | Found Prototype Hackware 12341 | -6/Waste | 7 allies followed down the chute 12416 | -6/Waste | Found Adv. Powered Armor 12484 | -6/Waste | Discovered new exit (range 11) 13029 | -6/Waste | Entered Factory 13029 | -6/Factory | Accompanied by 7 allies 13050 | -6/Factory | Discovered new exit (range 16) 13313 | -6/Factory | Discovered new exit (range 23) 14266 | -6/Factory | Lost 3 allies 14346 | -6/Factory | Discovered new exit (range 72) 14717 | -6/Factory | Garrison activated, responded to threat 14906 | -6/Factory | Learned location of 2 exits from Proximity Caves 14963 | -6/Factory | Learned location of 1 exit from Lower Caves 14996 | -6/Factory | Identified Exp. System Shield 15008 | -6/Factory | Identified exit to Lower Caves 15042 | -6/Factory | Learned Extension trap positions 15068 | -6/Factory | Identified exit to Factory 15152 | -6/Factory | Learned location of Lower Caves (-6) 15412 | -6/Factory | Spotted B-75 Beast 15445 | -6/Factory | Allies destroyed B-75 Beast 15470 | -6/Factory | Repaired Adv. Powered Armor 15617 | -6/Factory | Identified Exp. Sensor Array 16142 | -6/Factory | Garrison activated, responded to threat 16163 | -6/Factory | Identified exit to Garrison 16163 | -6/Factory | Entered Garrison 16163 | -6/Garrison | Accompanied by 2 allies 16182 | -6/Garrison | Triggered checkpoint 16225 | -6/Garrison | Garrison Relay disabled 16285 | -6/Garrison | Found embedded Infiltrators 16405 | -6/Garrison | Triggered checkpoint 16462 | -6/Garrison | Triggered checkpoint 16485 | -6/Garrison | Triggered checkpoint 16523 | -6/Garrison | Triggered checkpoint 16580 | -6/Garrison | Garrison Relay disabled 16660 | -6/Garrison | Discovered exit to Factory (range 9) 16765 | -6/Garrison | Triggered checkpoint 16899 | -6/Garrison | Triggered checkpoint 16913 | -6/Garrison | Garrison Relay disabled 16993 | -6/Garrison | Rescued a captive Derelict 17009 | -6/Garrison | Rescued a captive Derelict 17125 | -6/Garrison | Triggered checkpoint 17165 | -6/Garrison | Discovered exit to Factory (range 26) 17165 | -6/Garrison | Discovered exit to Factory (range 57) 17165 | -6/Garrison | Discovered exit to Factory (range 73) 17177 | -6/Garrison | Garrison Relay disabled 17285 | -6/Garrison | Expanded RIF knowledge: Autooverride 17592 | -6/Garrison | Build established: Botlord-Mutant 17613 | -6/Garrison | Entered Factory 17613 | -5/Factory | Accompanied by 9 allies 17613 | -5/Factory | Evolved 2 slots: Utility x1, Weapon x1 17687 | -5/Factory | Discovered new exit (range 10) 17796 | -5/Factory | Discovered new exit (range 14) 17913 | -5/Factory | First assault squad dispatched 18181 | -5/Factory | Fabricated P-70 Sage? 18190 | -5/Factory | Build established: Botlord-Tank 18459 | -5/Factory | Fabricated H-66 Slayer? 18760 | -5/Factory | Learned Testing stockpile data 18804 | -5/Factory | Lost 4 allies 18835 | -5/Factory | Learned location of 1 exit from Proximity Caves 18898 | -5/Factory | Learned Quarantine scanalyzer intel 18900 | -5/Factory | Fabricated M-28 Smith (x1) 18947 | -5/Factory | Fabricated P-70 Sage (x2) 18950 | -5/Factory | Identified exit to Factory 18993 | -5/Factory | Learned 2 Proximity Caves zone layouts 19026 | -5/Factory | Cargo convoy interrupted 19046 | -5/Factory | Learned Extension non-interactive machine intel 19090 | -5/Factory | Lost 5 allies 19102 | -5/Factory | Found Prototype Processor 19107 | -5/Factory | Found Prototype Processor 19111 | -5/Factory | Learned 4 Proximity Caves zone layouts 19126 | -5/Factory | Identified Exp. Core Analyzer 19132 | -5/Factory | Identified Exp. Terrain Scan Processor 19142 | -5/Factory | Found PL-3XN's Ring of Power 19329 | -5/Factory | Build established: Bothacker-Tank 19537 | -5/Factory | Identified exit to Garrison 19576 | -5/Factory | Entered Garrison 19576 | -5/Garrison | Accompanied by 2 allies 19661 | -5/Garrison | Expanded RIF knowledge: Code Merge 19686 | -5/Garrison | Triggered checkpoint 19692 | -5/Garrison | Sage 6d assimilated hostile G-50 Soldier 19742 | -5/Garrison | Garrison Relay disabled 20006 | -5/Garrison | Garrison Relay disabled 20053 | -5/Garrison | Build established: Botlord-Mutant 20133 | -5/Garrison | Spotted B-75 Beast 20136 | -5/Garrison | Triggered checkpoint 20161 | -5/Garrison | Destroyed B-75 Beast 20176 | -5/Garrison | Lost 6 allies 20200 | -5/Garrison | Lost 4 parts (1n2u1w) 20336 | -5/Garrison | Discovered exit to Factory (range 70) 20336 | -5/Garrison | Discovered exit to Factory (range 49) 20336 | -5/Garrison | Discovered exit to Factory (range 19) 20397 | -5/Garrison | Garrison Relay disabled 20455 | -5/Garrison | Triggered checkpoint 20477 | -5/Garrison | Garrison Relay disabled 20600 | -5/Garrison | Found Relay Coupler [Proto] 20605 | -5/Garrison | Found Relay Coupler [Proto] 20609 | -5/Garrison | Found Relay Coupler [Proto] 20612 | -5/Garrison | Found Relay Coupler [Proto] 20688 | -5/Garrison | Triggered checkpoint 20760 | -5/Garrison | Garrison Relay disabled 20786 | -5/Garrison | Triggered checkpoint 20789 | -5/Garrison | Build established: Botlord-Tank 20858 | -5/Garrison | Entered Factory 20858 | -4/Factory | Accompanied by 1 ally 20858 | -4/Factory | Evolved 2 slots: Power x1, Propulsion x1 21039 | -4/Factory | Spotted B-86 Titan 21108 | -4/Factory | First assault squad dispatched 21287 | -4/Factory | Repaired Imp. Utility Shielding? 21409 | -4/Factory | Discovered new exit (range 15) 21610 | -4/Factory | Discovered new exit (range 31) 21752 | -4/Factory | Identified exit to Research 22315 | -4/Factory | Fabricated P-70 Sage (x2) 22375 | -4/Factory | Garrison activated, responded to threat 22413 | -4/Factory | Lost 4 allies 22436 | -4/Factory | Identified exit to Garrison 22477 | -4/Factory | Entered Garrison 22477 | -4/Garrison | Accompanied by 4 allies 22539 | -4/Garrison | Triggered checkpoint 22567 | -4/Garrison | Garrison Relay disabled 22661 | -4/Garrison | Spotted B-86 Titan 22676 | -4/Garrison | Triggered checkpoint 22685 | -4/Garrison | Triggered checkpoint 22716 | -4/Garrison | Destroyed B-86 Titan 22737 | -4/Garrison | Lost 9 allies 22881 | -4/Garrison | Triggered checkpoint 22915 | -4/Garrison | Garrison Relay disabled 23007 | -4/Garrison | Discovered exit to Research (range 13) 23052 | -4/Garrison | Rescued a captive Derelict 23360 | -4/Garrison | Discovered exit to Research (range 6) 23392 | -4/Garrison | Triggered checkpoint 23430 | -4/Garrison | Garrison Relay disabled 23445 | -4/Garrison | Expanded RIF knowledge: Autoassimilate 23629 | -4/Garrison | Triggered checkpoint 23657 | -4/Garrison | Discovered new exit (range 5) 23682 | -4/Garrison | Spotted B-86 Titan 23715 | -4/Garrison | Discovered exit to Research (range 27) 23715 | -4/Garrison | Discovered exit to Research (range 28) 23715 | -4/Garrison | Discovered exit to Research (range 81) 23715 | -4/Garrison | Discovered new exit (range 23) 23774 | -4/Garrison | Entered Factory 23774 | -4/Factory | Accompanied by 7 allies 23827 | -4/Factory | Garrison activated, responded to threat 23869 | -4/Factory | Lost 4 allies 23904 | -4/Factory | Spotted B-86 Titan 23939 | -4/Factory | Destroyed B-86 Titan 24024 | -4/Factory | First assault squad dispatched 24046 | -4/Factory | Assimilated ARC 7a with formatsys_deep 24193 | -4/Factory | Identified exit to Upper Caves 24193 | -4/Factory | Identified exit to Extension 24521 | -4/Factory | Garrison activated, responded to threat 24817 | -4/Factory | Build established: Botlord-Mutant 24818 | -4/Factory | Repaired Broken Cld. Plasma Cannon? 25160 | -4/Factory | Repaired Broken Hvy. Dispersion Rifle? 25456 | -4/Factory | System corruption reached 10% 25529 | -4/Factory | Build established: Botlord-Tank 26112 | -4/Factory | Fabricated M-28 Smith (x1) 26209 | -4/Factory | Fabricated P-70 Sage (x2) 26773 | -4/Factory | Entered Extension 26773 | -4/Extension | Accompanied by 2 allies 26774 | -4/Extension | Loaded intel: 18 trap records 26775 | -4/Extension | Loaded intel: 18 non-interactive machine locations 26842 | -4/Extension | Rescued a captive Derelict 27023 | -4/Extension | First assault squad dispatched 27082 | -4/Extension | Rescued A7 27136 | -4/Extension | Rescued a captive Derelict 27197 | -4/Extension | Lost 4 allies 27677 | -4/Extension | Core integrity fell below 50% 27684 | -4/Extension | Core integrity fell below 20% 27685 | -4/Extension | Destroyed by G-73 Enforcer with Phase Gun Last Messages --------------- 27676_ System corrupted by crushing effect (+2). 27676_ T-07 Excavator knocked back. 27676_ Hvy. Dispersion Rifle destroyed. 27676_ Cld. Plasma Cannon destroyed. 27676_ Hvy. Antimatter Reactor destroyed. 27677_ Med. Treads severed. 27677_ U-05 Engineer builds a Wall. 27678_ Antimatter Cannon destroyed. 27679_ Critical hit (Burn: +37). 27681_ Exp. Heat Sink destroyed. 27681_ Adv. Force Field destroyed. 27681_ U-05 Engineer lays Concrete. 27682_ U-05 Engineer builds a Wall. 27682_ Rocket Launcher destroyed. 27683_ Relay Coupler [NC] severed. 27683_ L-61 Swordsman destroyed. 27684_ Knocked back. 27685_ Relay Coupler [Swarmer] destroyed. 27685_ System corrupted by crushing effect (+1). 27685_ Relay Coupler [Hunter] severed. Map ----- +----------------------------------------------------+ | % #????### # ########## ### ######## ! = ! | | ######??????### #??????## ###???# #### | | ??????????????#######??????### ## ###?????#####??? | | ???????????????????????????### ####??????????????? | | ?????????????????????????????###?????????????????? | | ?????????????????????????????????????????????????? | | ?????????????????????????????????????????????????? | | ?????????????????????????????????????????????????# | | ?????????????????????????????????????????????????# | | ?????????????????????????????????????????????????# | | ?????????????????????????????????????????????????# | | ?????????????????????????????????????????????????# | | ?????????????????????????????????????????????????# | | ?????????????????????????????????????????????????# | | ?????????????????????????????????????????????????# | | ?????????????????????????????????????????????????? | | ?????????????????????????????????????????????????? | | ?????????????????????????????????????????????????? | | ?????????????????????????????????????????????????? | | ?????????????????????????????????????????????????? | | ????????????????????????????????#######??????????? | | ################################ ###????????? | | % x%*!% ! ?????? | | km * !=!%=$! % ??? | | *lg%=%%* % | | i@b=[!*%%[x * | | u t %gbt%!%=! u% | | #########################==%###| #######???####### | | ????????????????????????# %g#???? #???????????? | | ????????????????????????# ???????##???????????? | | ????????????????????????# ##???????????????????? | | ????????????????????????#####????????????????????? | | ?????????????????????????????????????????????????? | | ?????????????????????????????????????????????????? | | ?????????????????????????????????????????????????? | | | | | | | | | | | | | | | | | | | | | | | | | | | | | | | +----------------------------------------------------+ Best States ------------- Heat Dissipation 74 Energy Generation 41 Energy Capacity 410 Matter Stores 500 Matter Capacity 500 Sight Range 16 Robot Scan Range 20 Terrain Scan Density 10 Jamming Range 16 Armor Coverage 850 Resistance: EM 15 Utility Shielding 66 Evasion (%) 40 Recoil Reduction 5 Offensive Hacking 26 Defensive Hacking 16 Relay Coupler Types 5 Relay Coupler Value 135 Authchip Count 3 Item Schematics ----------------- Exp. Sensor Array | -6/Factory | Scanalyzed Imp. Plasma Cutter | -6/Factory | Scanalyzed Imp. Utility Shielding | -6/Factory | Scanalyzed Lrn. Proton Cannon | -6/Factory | Hacked Robot Schematics ------------------ P-60 Hacker | -6/Factory | Hacked P-70 Sage | -5/Factory | Hacked M-28 Smith | -5/Factory | Hacked Fabricated ------------ P-70 Sage | x2 | -5/Factory | Authchip H-66 Slayer | x2 | -5/Factory | Preloaded M-28 Smith | x1 | -5/Factory | Authchip P-70 Sage | x2 | -5/Factory | Authchip P-70 Sage | x2 | -4/Factory | Authchip M-28 Smith | x1 | -4/Factory | Authchip P-70 Sage | x2 | -4/Factory | Authchip Alien Tech Used ----------------- None Achievements -------------- None Challenges ------------ None Game ------ Seed AlloyCouplerKatana Manual? 0 Play Time 05:39:05 Cumulative 761.0 hours Start 2024.08.17 @ 20:12:18 End 2024.08.18 @ 03:24:12 Sessions 7 Manual Loads 0 Difficulty Rogue Special Mode None Game No. 151 Rogue 151 Adventurer 0 Explorer 0 Win Type - Total 44 Types 22/4/6/1/2/1/4/2/2 Lore% 80 Gallery% 91 Achievement% 91 Wizard Run 0 Options --------- Layout 0 ASCII 0 Keyboard 0 Movement Numpad Keybinds 0 Fullscreen 1 Font 14/SmallcapsGlow Map View 84x54 Zoom Use 0% Tactical HUD 1 Map Filters NONE Filters NONE Steam 1 RUN: 252feb98-b949-40b4-b6ee-aef1353058c9